bitfinex/quotes_SOLUSD_20251228
["timestamp","ask_amount","ask_price","bid_price","bid_amount"]
[1766920476631,0.66,124.91,124.87,0.39]
[1766920477827,0.1,124.92,124.89,0.39]
[1766920477828,0.76,124.92,124.89,0.39]
[1766920489640,0.76,124.92,124.88,87.36767296]
[1766920493316,0.76,124.92,124.89,0.39]
[1766920499348,0.76,124.92,124.89,62.29]
[1766920505158,0.76,124.92,124.89,0.39]
[1766920516066,0.76,124.92,124.88,87.36767296]
[1766920519185,0.76,124.92,124.89,0.39]
[1766920519865,0.76,124.92,124.88,87.36767296]
[1766920520689,0.76,124.92,124.89,0.39]
[1766920521595,0.76,124.92,124.88,87.36767296]
[1766920522689,0.76,124.92,124.88,25.46767296]
[1766920527686,0.76,124.92,124.89,0.39]
[1766920529598,0.76,124.92,124.88,25.07767296]
[1766920529800,0.76,124.92,124.88,25.46767296]
[1766920533597,0.76,124.92,124.85,0.39]
[1766920533802,0.76,124.92,124.86,14.62]
[1766920534006,0.76,124.92,124.87,0.39]
[1766920538008,0.76,124.92,124.85,10.82767296]
[1766920540106,0.76,124.92,124.86,0.39]
[1766920556023,0.76,124.92,124.84,14.62]
[1766920556024,0.76,124.92,124.85,0.39]
[1766920557707,0.76,124.92,124.84,25.44767296]
[1766920558020,0.76,124.92,124.84,0.39]
[1766920562226,0.76,124.92,124.83,4.17752691]
[1766920562403,0.76,124.92,124.83,4.56752691]
[1766920562603,0.76,124.92,124.83,4.17752691]
[1766920562823,0.76,124.92,124.83,0.39]
[1766920580437,11.19767296,124.92,124.83,0.39]
[1766920580644,0.7,124.91,124.83,0.39]
[1766920591152,0.7,124.89,124.81,4.17950254]
[1766920591357,0.7,124.87,124.82,0.39]
[1766920605177,0.7,124.87,124.79,0.39]
[1766920610488,0.485155,124.82,124.79,0.39]
[1766920621496,0.095155,124.82,124.78,66.08029236]
[1766920621694,0.095155,124.82,124.78,76.3134234]
[1766920621880,0.69,124.85,124.78,72.13313104]
[1766920622081,0.69,124.85,124.78,76.31311222]
[1766920622377,0.64996,124.85,124.79,14.66]
[1766920622594,0.64996,124.85,124.8,0.04]
[1766920625198,0.64996,124.85,124.81,0.04]
[1766920626500,0.64996,124.85,124.8,61.94]
[1766920626992,0.64996,124.85,124.79,0.04]
[1766920648625,0.64996,124.85,124.79,61.9]
[1766920648798,0.64996,124.85,124.8,0.04]
[1766920654621,0.64996,124.85,124.8,61.9]
[1766920654823,0.64996,124.85,124.81,0.04]
[1766920668442,0.64996,124.85,124.78,66.08035339]
[1766920668443,0.64996,124.85,124.79,0.04]
[1766920672146,0.64996,124.85,124.78,66.12035339]
[1766920672442,0.64996,124.85,124.78,4.22035339]
[1766920672742,0.64996,124.85,124.79,0.04]
[1766920675446,0.64996,124.85,124.78,4.18035339]
[1766920675649,0.64996,124.85,124.78,0.04]
[1766920766832,0.64996,124.85,124.78,14.64]
[1766920767041,0.64996,124.85,124.79,0.04]
[1766920784341,0.64996,124.85,124.78,14.64]
[1766920784546,0.64996,124.85,124.78,0.04]
[1766920807904,0.64996,124.85,124.78,0.00987]
[1766920816229,0.64996,124.85,124.78,805.54]
[1766920824611,0.64996,124.85,124.78,820.18]
[1766920825928,14.52,124.89,124.78,830.61767296]
[1766920826125,0.71,124.88,124.78,892.51767296]
[1766920828037,0.71,124.88,124.78,907.05767296]
[1766920828714,0.71,124.88,124.78,830.51767296]
[1766920829039,0.71,124.88,124.78,805.54]
[1766920834632,6.1281,124.89,124.78,805.54]
[1766920834836,0.71,124.86,124.78,805.54]
[1766920838040,0.71,124.84,124.78,805.54]
[1766920861353,6.8181,124.88,124.78,805.54]
[1766920861763,0.69,124.87,124.78,805.54]
[1766920864263,15.23,124.89,124.78,805.54]
[1766920864643,15.23,124.89,124.78,829.60063279]
[1766920868465,15.23,124.89,124.78,891.50063279]
[1766920874369,15.23,124.89,124.78,829.60063279]
[1766920874871,15.23,124.89,124.78,805.54]
[1766920880182,15.23,124.89,124.78,867.44]
[1766920880481,0.69,124.88,124.79,14.64]
[1766920919732,0.69,124.88,124.78,805.54]
[1766920919913,0.68,124.86,124.78,805.54]
[1766920921242,0.68,124.84,124.78,805.54]
[1766920921441,0.68,124.82,124.78,805.54]
[1766920927738,6.1281,124.81,124.78,802.65]
[1766920927937,6.1281,124.81,124.78,778.88]
[1766920940561,14.54,124.8,124.78,778.88]
[1766920947064,14.54,124.8,124.78,730.72115524]
[1766920948634,14.54,124.8,124.78,676.68115524]
[1766920950142,24.97767296,124.8,124.78,604.74844664]
[1766920950448,10.43767296,124.8,124.78,604.34737571]
[1766920950644,14.54,124.79,124.78,604.34737571]
[1766920951153,14.54,124.79,124.78,605.05737571]
[1766920951458,14.54,124.79,124.78,604.65631197]
[1766920959067,14.54,124.79,124.78,604.25524105]
[1766920966087,14.54,124.79,124.78,598.23287993]
[1766920970778,10.43767296,124.82,124.79,0.72]
[1766920971076,14.54,124.81,124.79,0.72]
[1766920971278,14.54,124.81,124.78,597.52287993]
[1766920971594,15.21,124.81,124.78,597.52287993]
[1766920973175,14.54,124.81,124.78,597.12180901]
[1766920973480,15.21,124.81,124.78,597.84180901]
[1766920976090,15.21,124.81,124.78,591.81945084]
[1766920976579,4.18782898,124.8,124.78,591.81945084]
[1766920984993,4.18782898,124.8,124.79,0.72]
[1766920985195,2.02782898,124.8,124.78,591.09945084]
[1766920985378,14.56,124.8,124.78,591.09945084]
[1766920991205,15.23,124.8,124.78,591.09945084]
[1766921004618,15.23,124.8,124.78,591.07587305]
[1766921005721,14.56,124.8,124.78,591.07587305]
[1766921008398,14.56,124.79,124.78,591.07587305]
[1766921014626,0.66,124.81,124.78,591.07587305]
[1766921014826,14.56,124.8,124.78,591.07587305]
[1766921022233,14.56,124.8,124.78,591.05229526]
[1766921051855,14.56,124.8,124.78,591.02871913]
[1766921053248,14.56,124.8,124.78,591.005143]
[1766921065465,14.56,124.8,124.78,590.97947653]
[1766921077374,14.56,124.8,124.78,590.9559004]
[1766921079271,0.71,124.82,124.78,590.9559004]
[1766921079481,14.56,124.81,124.78,590.9559004]
[1766921082391,15.27,124.81,124.78,590.9559004]
[1766921083783,15.27,124.81,124.78,590.93232427]
[1766921089663,14.56,124.8,124.78,590.93232427]
[1766921101399,14.56,124.81,124.78,590.93232427]
[1766921102803,0.72,124.8,124.78,590.93232427]
[1766921103298,15.28,124.81,124.78,590.93232427]
[1766921103890,14.56,124.81,124.78,590.93232427]
[1766921108404,15.28,124.81,124.78,590.93232427]
[1766921110007,0.72,124.81,124.78,590.93232427]
[1766921110208,14.56,124.8,124.78,590.93232427]
[1766921111006,0.72,124.81,124.78,590.93232427]
[1766921111214,14.56,124.8,124.78,590.93232427]
[1766921124123,0.72,124.81,124.78,590.93232427]
[1766921124297,14.56,124.8,124.78,590.93232427]
[1766921131038,0.72,124.79,124.78,590.93232427]
[1766921132521,15.28,124.8,124.78,590.93232427]
[1766921165261,14.56,124.8,124.78,590.93232427]
[1766921174266,14.56,124.8,124.78,582.90328142]
[1766921190181,15.22,124.8,124.78,582.90328142]
[1766921198104,14.56,124.8,124.78,582.90328142]
[1766921241044,14.56,124.82,124.78,582.90328142]
[1766921243935,14.56,124.84,124.78,582.90328142]
[1766921249953,0.67,124.88,124.78,582.90328142]
[1766921250154,14.56,124.87,124.78,582.90328142]
[1766921250356,14.56,124.87,124.79,14.64]
[1766921250949,0.67,124.89,124.78,606.96584408]
[1766921251146,0.67,124.87,124.78,597.54328142]
[1766921251560,15.23,124.88,124.78,597.54328142]
[1766921252259,15.23,124.88,124.78,582.90328142]
[1766921252561,0.67,124.87,124.78,597.54328142]
[1766921260868,15.23,124.88,124.78,597.54328142]
[1766921263748,0.67,124.88,124.78,597.54328142]
[1766921263948,14.56,124.87,124.78,597.54328142]
[1766921265881,0.66,124.86,124.78,582.90328142]
[1766921273580,37.17053039,124.87,124.78,582.90328142]
[1766921273785,37.17053039,124.87,124.79,0.66]
[1766921275579,0.72,124.86,124.79,0.66]
[1766921286482,13.10796773,124.87,124.79,0.66]
[1766921286879,13.82796773,124.87,124.79,0.66]
[1766921288980,14.56,124.86,124.79,0.66]
[1766921295111,15.24,124.86,124.79,0.66]
[1766921306113,0.68,124.85,124.79,0.66]
[1766921333849,0.68,124.85,124.78,582.90328142]
[1766921334055,0.68,124.85,124.78,583.56328142]
[1766921335136,0.68,124.85,124.79,0.66]
[1766921341748,0.68,124.85,124.78,583.56328142]
[1766921342370,0.68,124.85,124.79,0.66]
[1766921394123,0.68,124.84,124.78,582.90328142]
[1766921394305,0.68,124.84,124.78,583.58328142]
[1766921397222,0.68,124.84,124.78,582.90328142]
[1766921397526,0.68,124.84,124.79,0.68]
[1766921406540,0.68,124.84,124.78,583.58328142]
[1766921406742,0.69,124.83,124.78,582.90328142]
[1766921406935,15.25,124.82,124.79,0.68]
[1766921412046,0.69,124.81,124.78,582.90328142]
[1766921412344,0.69,124.81,124.78,583.58328142]
[1766921413542,0.69,124.81,124.78,582.90328142]
[1766921413746,0.69,124.81,124.79,0.68]
[1766921430354,0.69,124.81,124.78,582.90328142]
[1766921430654,0.69,124.81,124.78,583.58328142]
[1766921434560,0.69,124.81,124.78,582.90328142]
[1766921435459,0.69,124.81,124.78,583.58328142]
[1766921441767,39.30608041,124.82,124.79,0.68]
[1766921442368,0.67,124.81,124.78,553.31328142]
[1766921442665,0.67,124.81,124.78,552.59328142]
[1766921442874,0.67,124.8,124.78,552.59328142]
[1766921443175,15.23,124.79,124.78,552.59328142]
[1766921444871,14.56,124.79,124.78,552.59328142]
[1766921454781,14.56,124.79,124.78,528.82328142]
[1766921454988,15.27,124.79,124.78,528.82328142]
[1766921461197,0.71,124.79,124.78,524.82328142]
[1766921461495,15.29,124.79,124.78,524.82328142]
[1766921462874,0.71,124.79,124.78,524.82328142]
[1766921463074,15.29,124.79,124.78,524.82328142]
[1766921464299,14.58,124.79,124.78,524.82328142]
[1766921464969,38.66187838,124.79,124.78,525.50328142]
[1766921465376,14.58,124.79,124.78,525.50328142]
[1766921465673,14.58,124.79,124.78,524.82328142]
[1766921470007,38.65994541,124.79,124.78,524.82328142]
[1766921472891,14.58,124.79,124.78,524.82328142]
[1766921474100,24.07994541,124.8,124.78,525.50328142]
[1766921474300,14.58,124.79,124.78,524.82328142]
[1766921480293,14.58,124.81,124.78,524.82328142]
[1766921498107,15.25,124.81,124.78,524.82328142]
[1766921498832,14.58,124.81,124.78,524.82328142]
[1766921519636,15.27,124.81,124.78,524.82328142]
[1766921521231,0.69,124.8,124.78,524.82328142]
[1766921525443,24.76801276,124.8,124.78,524.82328142]
[1766921527768,0.69,124.8,124.78,524.82328142]
[1766921528958,24.76801276,124.81,124.78,524.82328142]
[1766921529154,14.62523641,124.85,124.78,524.82328142]
[1766921529155,14.58,124.79,124.78,524.82328142]
[1766921537076,24.73608041,124.81,124.78,524.82328142]
[1766921537284,14.58,124.79,124.78,524.82328142]
[1766921559976,38.65994541,124.79,124.78,524.82328142]
[1766921566600,39.36994541,124.79,124.78,524.82328142]
[1766921566793,38.65994541,124.79,124.78,524.82328142]
[1766921568102,14.58,124.79,124.78,524.82328142]
[1766921568507,15.29,124.79,124.78,524.82328142]
[1766921575300,15.29,124.79,124.78,516.7941207]
[1766921591024,15.29,124.79,124.78,514.4531207]
[1766921591324,15.29,124.79,124.78,490.6831207]
[1766921593736,15.29,124.79,124.78,442.5204121]
[1766921607642,15.29,124.79,124.78,442.49856054]
[1766921609041,14.58,124.79,124.78,442.49856054]
[1766921611040,14.58,124.79,124.78,433.85886958]
[1766921611548,38.65994541,124.79,124.78,433.85886958]
[1766921617453,38.65994541,124.79,124.78,433.85886958]
[1766921618750,38.65994541,124.79,124.78,433.80786958]
[1766921622245,38.65994541,124.79,124.78,434.52786958]
[1766921622455,14.58,124.79,124.78,434.52786958]
[1766921624356,38.66381166,124.79,124.78,434.52786958]
[1766921628253,38.66381166,124.79,124.78,404.25786958]
[1766921634458,38.66381166,124.79,124.78,403.85679865]
[1766921642572,14.58,124.79,124.78,403.85679865]
[1766921642770,38.66381166,124.79,124.78,403.85679865]
[1766921645574,38.66381166,124.79,124.78,365.99522378]
[1766921645873,48.19,124.77,124.7,0.2]
[1766921646049,48.19,124.77,124.66,0.2]
[1766921646050,2.19881606,124.67,124.66,0.2]
[1766921646249,0.68881606,124.67,124.66,0.2]
[1766921651473,8.4,124.69,124.66,0.2]
[1766921651659,8.4,124.69,124.67,14.66]
[1766921658972,8.4,124.69,124.67,13.97118394]
[1766921661686,8.4,124.69,124.66,0.2]
[1766921661865,8.4,124.69,124.67,14.66]
[1766921662488,8.4,124.69,124.68,14.66]
[1766921664586,9.05,124.69,124.68,14.66]
[1766921665380,9.05,124.69,124.68,14.25861979]
[1766921665763,9.05,124.69,124.68,14.66]
[1766921666178,9.05,124.69,124.68,0.40138021]
[1766921666375,9.05,124.69,124.68,14.66]
[1766921667775,9.05,124.69,124.68,2.290625]
[1766921668388,8.4,124.69,124.68,2.290625]
[1766921668688,9.05,124.69,124.68,2.290625]
[1766921669185,9.05,124.69,124.66,0.2]
[1766921669576,9.05,124.69,124.67,14.66]
[1766921669875,0.65,124.68,124.67,14.66]
[1766921670369,0.65,124.68,124.66,0.2]
[1766921670687,0.65,124.68,124.66,14.86]
[1766921672893,9.05,124.69,124.66,14.86]
[1766921673089,8.4,124.69,124.66,14.86]
[1766921673294,0.65,124.68,124.66,14.86]
[1766921680298,15.51,124.68,124.66,14.86]
[1766921685203,0.65,124.68,124.66,14.86]
[1766921690110,15.51,124.68,124.66,14.86]
[1766921690604,0.65,124.68,124.66,14.86]
[1766921692009,14.86,124.69,124.66,14.86]
[1766921692312,15.54,124.69,124.66,14.86]
[1766921698813,14.86,124.69,124.66,14.86]
[1766921699017,0.67,124.68,124.66,14.86]
[1766921705522,0.67,124.68,124.66,6.82404647]
[1766921709120,0.67,124.68,124.65,0.2]
[1766921709326,0.67,124.68,124.66,14.66]
[1766921715429,0.67,124.68,124.66,6.62384076]
[1766921717455,0.67,124.68,124.65,14.86]
[1766921717764,0.67,124.68,124.65,0.2]
[1766921718433,0.67,124.68,124.63,14.86]
[1766921722642,0.53710285,124.68,124.63,14.86]
[1766921723656,0.53710285,124.68,124.64,0.53]
[1766921737162,0.53710285,124.68,124.63,0.2]
[1766921737362,0.53710285,124.68,124.64,14.66]
[1766921737545,0.53710285,124.68,124.64,15.19]
[1766921739239,0.53710285,124.68,124.64,14.66]
[1766921743869,0.53710285,124.68,124.64,15.19]
[1766921744468,0.53710285,124.68,124.64,14.66]
[1766921744672,0.53710285,124.68,124.65,0.53]
[1766921745166,0.53710285,124.68,124.64,14.66]
[1766921745365,0.53710285,124.68,124.64,15.19]
[1766921748591,0.53710285,124.68,124.64,14.66]
[1766921749372,0.53710285,124.68,124.64,15.19]
[1766921749761,0.53710285,124.68,124.64,14.66]
[1766921753773,0.53710285,124.68,124.64,15.19]
[1766921755088,0.53710285,124.68,124.65,0.53]
[1766921755384,0.53710285,124.68,124.64,14.66]
[1766921777311,0.53710285,124.68,124.63,0.2]
[1766921777602,0.53710285,124.68,124.64,14.66]
[1766921777804,0.53710285,124.68,124.64,6.62291307]
[1766921826854,0.71,124.69,124.64,6.62291307]
[1766921842658,0.71,124.69,124.63,0.2]
[1766921848774,0.69,124.68,124.63,0.2]
[1766921850285,28.07411566,124.67,124.63,1e-08]
[1766921850477,0.69,124.66,124.63,1e-08]
[1766921852958,28.07862013,124.65,124.62,1e-08]
[1766921856795,28.76862013,124.65,124.62,1e-08]
[1766921859590,0.69,124.67,124.62,1e-08]
[1766921860260,0.69,124.67,124.61,1e-08]
[1766921861889,0.69,124.65,124.61,1e-08]
[1766921864970,28.0808729,124.64,124.61,1e-08]
[1766921865171,28.7408729,124.64,124.61,1e-08]
[1766921866293,4.19262752,124.67,124.61,1e-08]
[1766921866294,28.07636771,124.66,124.61,1e-08]
[1766921866872,28.73636771,124.66,124.61,1e-08]
[1766921869808,28.07636771,124.66,124.61,1e-08]
[1766921870779,28.73636771,124.66,124.61,1e-08]
[1766921872585,0.66,124.65,124.61,1e-08]
[1766921872980,28.0808729,124.64,124.61,1e-08]
[1766921873292,28.7408729,124.64,124.61,1e-08]
[1766921877010,28.0808729,124.64,124.59,0.2]
[1766921877194,28.7408729,124.64,124.59,0.2]
[1766921880416,28.0808729,124.64,124.59,0.2]
[1766921881612,0.66,124.65,124.59,0.2]
[1766921881613,40.10909674,124.66,124.59,0.2]
[1766921881817,0.66,124.65,124.59,0.2]
[1766921883718,8.02310654,124.64,124.59,0.2]
[1766921883891,8.68310654,124.64,124.59,0.2]
[1766921890521,8.02310654,124.64,124.59,0.2]
[1766921893326,20.0576833,124.65,124.59,0.2]
[1766921893527,0.66,124.64,124.59,0.2]
[1766921898339,8.0237503,124.63,124.59,0.2]
[1766921913550,8.7237503,124.63,124.59,0.2]
[1766921916054,8.0237503,124.63,124.59,0.2]
[1766921916264,0.7,124.62,124.6,14.66]
[1766921917754,0.7,124.64,124.6,14.66]
[1766921920069,0.7,124.62,124.6,14.66]
[1766921921257,8.72481473,124.62,124.6,14.66]
[1766921943561,8.02481473,124.62,124.6,14.66]
[1766921948181,8.02392833,124.63,124.6,14.66]
[1766921954584,0.72,124.65,124.6,14.66]
[1766921955169,0.72,124.65,124.61,14.66]
[1766921955368,0.72,124.65,124.61,14.609]
[1766921958801,0.69,124.63,124.61,14.609]
[1766921961994,0.69,124.62,124.61,14.609]
[1766921962795,0.69,124.62,124.6,14.66]
[1766921963292,0.4016058,124.61,124.6,14.66]
[1766921963498,1.0916058,124.61,124.6,14.66]
[1766921972307,9.11675518,124.61,124.6,14.66]
[1766921973097,0.69,124.6,124.58,0.2]
[1766921973301,0.69,124.6,124.58,14.66]
[1766921975199,8.71608521,124.6,124.58,14.66]
[1766921975627,28.09029066,124.6,124.53,10.63767296]
[1766921975903,0.69,124.59,124.53,0.2]
[1766921976099,0.69,124.59,124.53,0.89]
[1766921976317,28.09439717,124.58,124.53,0.89]
[1766921976494,0.69,124.57,124.53,0.89]
[1766921977502,8.02825947,124.56,124.53,0.89]
[1766921977703,8.71825947,124.56,124.53,0.71000001]
[1766921979415,0.69,124.55,124.53,0.71000001]
[1766921979708,0.69,124.56,124.53,0.71000001]
[1766921979899,8.71825947,124.56,124.53,0.71000001]
[1766921983316,8.02825947,124.56,124.53,0.71000001]
[1766921987211,0.71,124.55,124.53,1e-08]
[1766921988896,8.73910402,124.55,124.53,1e-08]
[1766921989514,0.71,124.54,124.53,1e-08]
[1766921990512,8.02954873,124.54,124.53,1e-08]
[1766921992406,28.10342057,124.54,124.51,1e-08]
[1766921992801,0.71,124.53,124.51,1e-08]
[1766921995918,8.7404076,124.53,124.51,1e-08]
[1766921998098,8.7404076,124.53,124.51,0.72000001]
[1766921998611,8.02954873,124.54,124.51,0.72000001]
[1766921999218,8.73954873,124.54,124.51,0.72000001]
[1766922003331,28.09958316,124.56,124.51,0.72000001]
[1766922003704,0.71,124.55,124.51,0.72000001]
[1766922005429,8.73906701,124.55,124.51,0.72000001]
[1766922007533,8.73906701,124.55,124.51,0.68995001]
[1766922013542,8.02906701,124.55,124.51,0.68995001]
[1766922013722,8.73906701,124.55,124.51,0.68995001]
[1766922037659,8.02906701,124.55,124.51,0.68995001]
[1766922037863,8.02859086,124.56,124.51,0.68995001]
[1766922043564,0.71,124.59,124.51,0.68995001]
[1766922043962,0.71,124.59,124.51,8.03140085]
[1766922044261,0.71,124.59,124.52,0.72]
[1766922048060,0.69,124.57,124.52,0.72]
[1766922048962,8.71822094,124.57,124.52,0.72]
[1766922050566,8.02822094,124.57,124.52,0.72]
[1766922050765,0.68,124.57,124.52,0.72]
[1766922053368,8.02825947,124.56,124.52,0.72]
[1766922053562,8.70825947,124.56,124.52,0.72]
[1766922057472,8.02825947,124.56,124.52,0.72]
[1766922057677,0.68,124.55,124.52,0.72]
[1766922058073,8.70925909,124.55,124.52,0.72]
[1766922058377,0.68,124.54,124.52,0.72]
[1766922062368,0.68,124.54,124.5,0.92]
[1766922062369,0.68,124.53,124.5,0.92]
[1766922062974,0.68,124.53,124.51,0.72]
[1766922064487,0.68,124.55,124.51,0.72]
[1766922066787,8.02930366,124.55,124.51,0.72]
[1766922066974,0.68,124.54,124.51,0.72]
[1766922081099,0.68,124.53,124.5,0.9]
[1766922081898,8.70974392,124.54,124.51,0.7]
[1766922083810,20.0712045,124.56,124.51,0.7]
[1766922084105,0.68,124.55,124.5,0.9]
[1766922086509,0.68,124.54,124.5,0.2]
[1766922086710,0.68,124.54,124.51,0.7]
[1766922095701,0.68,124.54,124.5,0.2]
[1766922095880,0.68,124.53,124.5,0.9]
[1766922098010,0.68,124.53,124.51,0.7]
[1766922101515,0.68,124.53,124.5,0.9]
[1766922103516,0.68,124.53,124.5,15.58]
[1766922109329,20.0712045,124.56,124.51,0.72]
[1766922109516,0.72,124.55,124.51,0.72]
[1766922112752,8.74939482,124.55,124.51,0.72]
[1766922112937,0.66,124.54,124.51,0.72]
[1766922122369,0.66,124.55,124.51,0.72]
[1766922123037,8.68761499,124.57,124.51,0.72]
[1766922124354,0.66,124.58,124.52,0.72]
[1766922124548,0.66,124.58,124.54,0.72]
[1766922127557,20.06498661,124.6,124.54,0.72]
[1766922127861,8.68568218,124.6,124.55,0.72]
[1766922128246,0.66,124.59,124.55,0.72]
[1766922129150,0.66,124.59,124.56,14.68]
[1766922129347,0.66,124.59,124.57,0.72]
[1766922131563,8.68634738,124.59,124.57,0.72]
[1766922133436,0.66,124.6,124.57,0.72]
[1766922136463,8.02632635,124.59,124.57,0.72]
[1766922136656,8.73632635,124.59,124.57,0.72]
[1766922150491,0.71,124.62,124.57,0.66]
[1766922151488,0.71,124.61,124.57,0.66]
[1766922152592,8.73561208,124.61,124.57,0.66]
[1766922157288,20.06098539,124.62,124.57,0.66]
[1766922157496,0.71,124.61,124.57,0.66]
[1766922161178,8.02568218,124.6,124.57,0.66]
[1766922161697,8.73568218,124.6,124.57,0.66]
[1766922169305,20.06098539,124.62,124.57,0.66]
[1766922169306,28.08590143,124.62,124.57,0.66]
[1766922169519,0.72,124.61,124.57,0.66]
[1766922200333,0.72,124.61,124.58,0.72]
[1766922202931,0.67,124.6,124.58,0.72]
[1766922244297,0.67,124.6,124.56,23.37825749]
[1766922244799,0.67,124.6,124.57,0.67]
[1766922276562,8.02580032,124.6,124.53,61.9]
[1766922276753,0.72,124.59,124.54,8.02948983]
[1766922276958,0.72,124.59,124.55,0.66]
[1766922300669,0.72,124.59,124.55,8.68890102]
[1766922300870,0.72,124.59,124.56,0.69]
[1766922301069,0.65,124.61,124.56,0.69]
[1766922304990,0.65,124.61,124.56,8.71808497]
[1766922305190,0.65,124.61,124.57,0.69]
[1766922307994,0.65,124.6,124.56,8.71808497]
[1766922308195,0.65,124.6,124.56,0.69]
[1766922311015,8.6756824,124.6,124.56,0.69]
[1766922311173,0.65,124.59,124.56,0.69]
[1766922319614,8.02640032,124.59,124.56,0.69]
[1766922319821,0.66,124.58,124.56,0.69]
[1766922345147,0.66,124.58,124.54,23.33952742]
[1766922345639,0.66,124.58,124.54,22.68952742]
[1766922345937,0.66,124.58,124.55,0.65]
[1766922391995,0.66,124.58,124.54,22.68954375]
[1766922392196,0.66,124.58,124.54,23.40954375]
[1766922392999,0.66,124.58,124.54,22.68954375]
[1766922393305,0.66,124.58,124.55,0.72]
[1766922395406,0.66,124.58,124.53,0.72]
[1766922395575,0.66,124.58,124.53,8.75019304]
[1766922396188,0.66,124.58,124.53,8.03019304]
[1766922396400,0.66,124.58,124.54,0.72]
[1766922399311,8.02706377,124.58,124.53,0.72]
[1766922399508,8.02706377,124.58,124.51,46.80795752]
[1766922399509,0.71,124.57,124.52,0.72]
[1766922400195,15.37,124.57,124.52,0.72]
[1766922400403,0.71,124.56,124.52,0.72]
[1766922447358,0.71,124.56,124.52,8.75048917]
[1766922455591,0.71,124.56,124.52,0.72]
[1766922468394,0.69,124.58,124.52,8.03045543]
[1766922468586,0.69,124.58,124.53,0.68]
[1766922469295,0.69,124.58,124.55,0.68]
[1766922474100,8.02608604,124.6,124.55,0.68]
[1766922474306,0.72,124.6,124.56,0.66]
[1766922476013,8.02518148,124.61,124.56,0.66]
[1766922476317,0.72,124.6,124.56,0.66]
[1766922482721,0.72,124.6,124.56,8.02814432]
[1766922482931,0.72,124.61,124.57,14.66]
[1766922483102,0.72,124.62,124.58,0.66]
[1766922484816,28.07898987,124.65,124.58,8.6863453]
[1766922485019,0.72,124.64,124.59,0.66]
[1766922485730,0.72,124.64,124.61,0.66]
[1766922486828,0.72,124.65,124.61,0.66]
[1766922500139,0.72,124.65,124.61,8.68481069]
[1766922500334,0.72,124.65,124.62,0.66]
[1766922501844,0.2,124.66,124.62,0.66]
[1766922502340,0.86,124.66,124.63,0.66]
[1766922505138,0.2,124.66,124.63,0.66]
[1766922505542,0.2,124.66,124.64,0.66]
[1766922505741,0.2,124.66,124.59,20.06536825]
[1766922505951,0.66,124.65,124.62,8.02425631]
[1766922506246,0.66,124.65,124.61,0.66]
[1766922507241,0.66,124.65,124.61,8.68493139]
[1766922508351,0.66,124.65,124.62,0.66]
[1766922509046,0.86,124.66,124.62,0.66]
[1766922511249,0.86,124.66,124.63,15.32]
[1766922516254,0.66,124.65,124.63,15.32]
[1766922518454,0.86,124.66,124.63,15.32]